[Event "Early-Titled-Tuesday-Blitz-May-14-2024"]
[Site "Chess.com"]
[Date "2024.05.14"]
[Round "11"]
[White "Blitz_Lover1"]
[Black "NelsonLinda"]
[Result "1/2-1/2"]
[WhiteElo "2424"]
[BlackElo "2619"]
[TimeControl "180+1"]
[EndTime "10:08:31 PDT"]
[Termination "Game drawn by repetition"]

1. e4 {[%clk 0:02:55.9]} 1... g6 {[%clk 0:02:44.8]} 2. d4 {[%clk 0:02:54.9]}
2... Nf6 {[%clk 0:02:45.3]} 3. Nc3 {[%clk 0:02:54]} 3... d5 {[%clk 0:02:45.1]}
4. Bd3 {[%clk 0:02:42.3]} 4... dxe4 {[%clk 0:02:43.2]} 5. Nxe4 {[%clk
0:02:40.8]} 5... Bg7 {[%clk 0:02:43.5]} 6. c3 {[%clk 0:02:37.1]} 6... Kf8 {[%clk
0:02:43.2]} 7. h3 {[%clk 0:02:26.8]} 7... h6 {[%clk 0:02:37.4]} 8. Nf3 {[%clk
0:02:26]} 8... Kg8 {[%clk 0:02:32.7]} 9. O-O {[%clk 0:02:23.1]} 9... Kh7 {[%clk
0:02:33]} 10. Re1 {[%clk 0:02:21]} 10... Nbd7 {[%clk 0:02:30.4]} 11. Nxf6+
{[%clk 0:02:17.8]} 11... Nxf6 {[%clk 0:02:29.4]} 12. Ne5 {[%clk 0:02:14.2]}
12... Rf8 {[%clk 0:02:28.1]} 13. Qf3 {[%clk 0:02:11.1]} 13... a5 {[%clk
0:02:07.4]} 14. Qg3 {[%clk 0:02:10]} 14... Bf5 {[%clk 0:02:03.9]} 15. Bxf5
{[%clk 0:01:59.2]} 15... gxf5 {[%clk 0:02:04.8]} 16. Qf3 {[%clk 0:01:59.7]}
16... e6 {[%clk 0:02:03.6]} 17. Qxb7 {[%clk 0:01:59.3]} 17... Nd5 {[%clk
0:01:58.7]} 18. Qc6 {[%clk 0:01:52.4]} 18... Qe7 {[%clk 0:01:37.9]} 19. a4
{[%clk 0:01:43.9]} 19... Rg8 {[%clk 0:01:33.3]} 20. Qc4 {[%clk 0:01:39]} 20...
Qf6 {[%clk 0:01:20.7]} 21. Qd3 {[%clk 0:01:28.7]} 21... Bf8 {[%clk 0:01:16.1]}
22. Qf3 {[%clk 0:01:26.1]} 22... Bd6 {[%clk 0:01:13]} 23. Bd2 {[%clk 0:00:51.8]}
23... Bxe5 {[%clk 0:00:52.6]} 24. dxe5 {[%clk 0:00:50.7]} 24... Qg6 {[%clk
0:00:53.1]} 25. Kh1 {[%clk 0:00:49.3]} 25... Rab8 {[%clk 0:00:50.5]} 26. Rab1
{[%clk 0:00:46.6]} 26... Rb3 {[%clk 0:00:32.9]} 27. Rg1 {[%clk 0:00:41.8]} 27...
Rgb8 {[%clk 0:00:28.8]} 28. g4 {[%clk 0:00:38.6]} 28... Rxb2 {[%clk 0:00:20.8]}
29. Rxb2 {[%clk 0:00:35.1]} 29... Rxb2 {[%clk 0:00:19.6]} 30. Bc1 {[%clk
0:00:35.2]} 30... Rc2 {[%clk 0:00:18.1]} 31. gxf5 {[%clk 0:00:27.9]} 31... Qxf5
{[%clk 0:00:19]} 32. Qg3 {[%clk 0:00:27.4]} 32... Qe4+ {[%clk 0:00:13.2]} 33. f3
{[%clk 0:00:22.4]} 33... Qg6 {[%clk 0:00:12.9]} 34. Qh4 {[%clk 0:00:20.5]} 34...
Rxc1 {[%clk 0:00:07.2]} 35. Rxc1 {[%clk 0:00:18.5]} 35... Qd3 {[%clk 0:00:05.9]}
36. Qg3 {[%clk 0:00:14.8]} 36... Ne7 {[%clk 0:00:01.5]} 37. Rg1 {[%clk
0:00:14.5]} 37... Ng6 {[%clk 0:00:01.9]} 38. h4 {[%clk 0:00:14.3]} 38... h5
{[%clk 0:00:01.2]} 39. Qg5 {[%clk 0:00:13.5]} 39... Qxf3+ {[%clk 0:00:01.6]} 40.
Rg2 {[%clk 0:00:13.8]} 40... Qf1+ {[%clk 0:00:01.9]} 41. Kh2 {[%clk 0:00:13.8]}
41... Kg7 {[%clk 0:00:01.5]} 42. Qxh5 {[%clk 0:00:10.3]} 42... Qf4+ {[%clk
0:00:01.8]} 43. Kg1 {[%clk 0:00:09]} 43... Qc1+ {[%clk 0:00:01.8]} 44. Kh2
{[%clk 0:00:09.4]} 44... Qf4+ {[%clk 0:00:02.1]} 45. Rg3 {[%clk 0:00:09.1]}
45... Qf2+ {[%clk 0:00:01.9]} 46. Kh3 {[%clk 0:00:05.8]} 46... Qf1+ {[%clk
0:00:01.9]} 47. Kh2 {[%clk 0:00:06.1]} 47... Qf2+ {[%clk 0:00:02.2]} 48. Rg2
{[%clk 0:00:06.7]} 48... Qf4+ {[%clk 0:00:02.4]} 1/2-1/2

[Event "Early-Titled-Tuesday-Blitz-May-14-2024"]
[Site "Chess.com"]
[Date "2024.05.14"]
[Round "11"]
[White "blitzking1729"]
[Black "Rodalquilar"]
[Result "1-0"]
[WhiteElo "2768"]
[BlackElo "2863"]
[TimeControl "180+1"]
[EndTime "10:08:32 PDT"]
[Termination "blitzking1729 won on time"]

1. Nf3 {[%clk 0:03:00.9]} 1... d5 {[%clk 0:03:00.3]} 2. g3 {[%clk 0:03:00.1]}
2... Nf6 {[%clk 0:03:00.8]} 3. Bg2 {[%clk 0:02:59.9]} 3... Bf5 {[%clk
0:03:01.2]} 4. O-O {[%clk 0:02:56.5]} 4... e6 {[%clk 0:03:01.7]} 5. c4 {[%clk
0:02:55.9]} 5... c6 {[%clk 0:03:02]} 6. d3 {[%clk 0:02:54]} 6... dxc4 {[%clk
0:03:01.9]} 7. dxc4 {[%clk 0:02:53.6]} 7... Nbd7 {[%clk 0:03:02.3]} 8. Nc3
{[%clk 0:02:51.2]} 8... Be7 {[%clk 0:03:01.6]} 9. Be3 {[%clk 0:02:48.3]} 9...
O-O {[%clk 0:03:00]} 10. h3 {[%clk 0:02:46.7]} 10... h6 {[%clk 0:02:59.9]} 11.
Qb3 {[%clk 0:02:46.3]} 11... Qc7 {[%clk 0:02:59.9]} 12. Rac1 {[%clk 0:02:41.6]}
12... Nc5 {[%clk 0:02:59.5]} 13. Qd1 {[%clk 0:02:34.5]} 13... Rfd8 {[%clk
0:02:59.2]} 14. Qe1 {[%clk 0:02:34.9]} 14... a5 {[%clk 0:02:54.2]} 15. Nd4
{[%clk 0:02:25.4]} 15... Bh7 {[%clk 0:02:53.5]} 16. Nb3 {[%clk 0:02:24.1]} 16...
Nxb3 {[%clk 0:02:49.7]} 17. axb3 {[%clk 0:02:24.1]} 17... Bb4 {[%clk 0:02:49.9]}
18. f4 {[%clk 0:02:18.6]} 18... Ne4 {[%clk 0:02:38.6]} 19. Bxe4 {[%clk
0:02:17.1]} 19... Bxe4 {[%clk 0:02:38.1]} 20. Qf2 {[%clk 0:02:17.4]} 20... Bh7
{[%clk 0:02:28.3]} 21. Bb6 {[%clk 0:02:15]} 21... Qe7 {[%clk 0:02:19.2]} 22.
Bxd8 {[%clk 0:02:12.7]} 22... Qxd8 {[%clk 0:02:15.5]} 23. Rfd1 {[%clk
0:02:11.3]} 23... Qe7 {[%clk 0:02:15.1]} 24. Na4 {[%clk 0:02:10.4]} 24... h5
{[%clk 0:02:10.3]} 25. Kh2 {[%clk 0:02:09.1]} 25... Bf5 {[%clk 0:02:03.8]} 26.
Qd4 {[%clk 0:02:02.2]} 26... Kh7 {[%clk 0:01:52.1]} 27. Nb6 {[%clk 0:01:58.1]}
27... Bc5 {[%clk 0:01:42.3]} 28. Qd7 {[%clk 0:01:57.5]} 28... Qxd7 {[%clk
0:01:42.8]} 29. Nxd7 {[%clk 0:01:57.4]} 29... Bb4 {[%clk 0:01:16.5]} 30. Ne5
{[%clk 0:01:52.9]} 30... f6 {[%clk 0:01:12.8]} 31. Nd3 {[%clk 0:01:50.3]} 31...
Be7 {[%clk 0:01:08.8]} 32. Nf2 {[%clk 0:01:48]} 32... Bc5 {[%clk 0:01:08.3]} 33.
Kg2 {[%clk 0:01:40.6]} 33... a4 {[%clk 0:01:02.2]} 34. Ra1 {[%clk 0:01:34.8]}
34... Bc2 {[%clk 0:01:01.8]} 35. Rd7 {[%clk 0:01:33]} 35... Bxb3 {[%clk
0:00:59.1]} 36. Ne4 {[%clk 0:01:29.4]} 36... Bf8 {[%clk 0:00:50.6]} 37. Nxf6+
{[%clk 0:01:26.1]} 37... Kg6 {[%clk 0:00:51.1]} 38. Ne4 {[%clk 0:01:19.9]} 38...
Bxc4 {[%clk 0:00:51.6]} 39. Nc3 {[%clk 0:01:12.1]} 39... b5 {[%clk 0:00:49.6]}
40. e4 {[%clk 0:01:12.1]} 40... Bb4 {[%clk 0:00:48.5]} 41. Nd1 {[%clk
0:01:03.9]} 41... Bc5 {[%clk 0:00:40.3]} 42. g4 {[%clk 0:00:54.6]} 42... hxg4
{[%clk 0:00:40.3]} 43. hxg4 {[%clk 0:00:55.2]} 43... e5 {[%clk 0:00:22]} 44. Rc7
{[%clk 0:00:40.2]} 44... Ra6 {[%clk 0:00:17.8]} 45. f5+ {[%clk 0:00:40.3]} 45...
Kf6 {[%clk 0:00:18.1]} 46. Kf3 {[%clk 0:00:38.6]} 46... Bd6 {[%clk 0:00:09.7]}
47. Rd7 {[%clk 0:00:37.4]} 47... Bc5 {[%clk 0:00:08.5]} 48. Ne3 {[%clk 0:00:35]}
48... Bxe3 {[%clk 0:00:07.1]} 49. Kxe3 {[%clk 0:00:34.5]} 49... b4 {[%clk
0:00:07]} 50. g5+ {[%clk 0:00:33.7]} 50... Kxg5 {[%clk 0:00:06]} 51. Rg1+ {[%clk
0:00:34.3]} 51... Kh6 {[%clk 0:00:02.1]} 52. Rg6+ {[%clk 0:00:27.7]} 52... Kh5
{[%clk 0:00:00.3]} 53. Rd2 {[%clk 0:00:25.1]} 1-0

[Event "Early-Titled-Tuesday-Blitz-May-14-2024"]
[Site "Chess.com"]
[Date "2024.05.14"]
[Round "11"]
[White "temus_galaktionov"]
[Black "ChessQueen"]
[Result "0-1"]
[WhiteElo "2857"]
[BlackElo "2793"]
[TimeControl "180+1"]
[EndTime "10:08:33 PDT"]
[Termination "ChessQueen won by resignation"]

1. d4 {[%clk 0:03:00.9]} 1... f5 {[%clk 0:02:59.9]} 2. Nf3 {[%clk 0:02:59.8]}
2... Nf6 {[%clk 0:03:00.1]} 3. c4 {[%clk 0:03:00.7]} 3... g6 {[%clk 0:03:00.4]}
4. g3 {[%clk 0:03:01.4]} 4... Bg7 {[%clk 0:03:01]} 5. Bg2 {[%clk 0:03:02.3]}
5... O-O {[%clk 0:03:01.3]} 6. O-O {[%clk 0:03:03.2]} 6... d6 {[%clk 0:03:01.9]}
7. Nc3 {[%clk 0:03:02.7]} 7... a5 {[%clk 0:03:02.2]} 8. Re1 {[%clk 0:03:01.5]}
8... a4 {[%clk 0:03:00.4]} 9. Nxa4 {[%clk 0:02:58.6]} 9... e5 {[%clk 0:03:00.3]}
10. dxe5 {[%clk 0:02:56.7]} 10... dxe5 {[%clk 0:03:01.2]} 11. Qxd8 {[%clk
0:02:56.3]} 11... Rxd8 {[%clk 0:03:00.8]} 12. Nc3 {[%clk 0:02:56.5]} 12... e4
{[%clk 0:03:01.3]} 13. Nd2 {[%clk 0:02:56.3]} 13... Na6 {[%clk 0:02:51.1]} 14.
f3 {[%clk 0:02:51.2]} 14... Nb4 {[%clk 0:02:46.3]} 15. Rd1 {[%clk 0:02:47.6]}
15... Nc2 {[%clk 0:02:44.5]} 16. Rb1 {[%clk 0:02:47.3]} 16... Ne3 {[%clk
0:02:43.4]} 17. Re1 {[%clk 0:02:46.9]} 17... Nc2 {[%clk 0:02:39.4]} 18. Rf1
{[%clk 0:02:44.2]} 18... Ne3 {[%clk 0:02:24.5]} 19. Rf2 {[%clk 0:02:34.4]} 19...
Nxg2 {[%clk 0:02:03.9]} 20. Rxg2 {[%clk 0:02:35.3]} 20... Be6 {[%clk 0:01:57.5]}
21. c5 {[%clk 0:01:48.8]} 21... Nd5 {[%clk 0:01:41.8]} 22. fxe4 {[%clk
0:01:33.1]} 22... Nxc3 {[%clk 0:01:40.7]} 23. bxc3 {[%clk 0:01:34]} 23... Bxc3
{[%clk 0:01:40.9]} 24. exf5 {[%clk 0:01:11.6]} 24... Bxa2 {[%clk 0:01:36.2]} 25.
Rxb7 {[%clk 0:01:10.6]} 25... Bd5 {[%clk 0:01:29.2]} 26. Rb3 {[%clk 0:00:51.5]}
26... Bxb3 {[%clk 0:01:21.7]} 27. Nxb3 {[%clk 0:00:52.4]} 27... Rd1+ {[%clk
0:01:19.6]} 28. Kf2 {[%clk 0:00:52.1]} 28... Rb8 {[%clk 0:01:16.3]} 29. fxg6
{[%clk 0:00:42.3]} 29... hxg6 {[%clk 0:01:15.3]} 30. Bf4 {[%clk 0:00:31.2]}
30... Rxb3 {[%clk 0:01:13]} 31. Kf3 {[%clk 0:00:20.3]} 31... Be5+ {[%clk
0:01:07]} 32. Ke4 {[%clk 0:00:16.1]} 32... Bxf4 {[%clk 0:01:05.3]} 33. gxf4
{[%clk 0:00:17]} 33... Kf7 {[%clk 0:01:04.9]} 34. h4 {[%clk 0:00:17.2]} 34...
Rc3 {[%clk 0:01:00.7]} 35. h5 {[%clk 0:00:16.3]} 35... gxh5 {[%clk 0:00:58]} 36.
Rg5 {[%clk 0:00:16.8]} 36... Rc4+ {[%clk 0:00:55.5]} 37. Ke3 {[%clk 0:00:16.7]}
37... h4 {[%clk 0:00:51.9]} 38. Rh5 {[%clk 0:00:15.5]} 38... Kg6 {[%clk
0:00:38.3]} 39. Rxh4 {[%clk 0:00:15.2]} 39... Rxc5 {[%clk 0:00:38.1]} 40. Kf3
{[%clk 0:00:15.1]} 40... Rh5 {[%clk 0:00:28.8]} 41. Rg4+ {[%clk 0:00:13.9]}
41... Kf6 {[%clk 0:00:29.3]} 42. Rg8 {[%clk 0:00:12.9]} 42... c5 {[%clk
0:00:28.3]} 43. Rc8 {[%clk 0:00:11.7]} 43... Rh3+ {[%clk 0:00:26.9]} 44. Kg4
{[%clk 0:00:08.1]} 44... Re3 {[%clk 0:00:26.6]} 45. Rc6+ {[%clk 0:00:06.8]}
45... Re6 {[%clk 0:00:26.3]} 46. Rxc5 {[%clk 0:00:06.5]} 46... Rxe2 {[%clk
0:00:26.4]} 47. Rc6+ {[%clk 0:00:07.2]} 47... Re6 {[%clk 0:00:26.4]} 48. Rc8
{[%clk 0:00:07.7]} 48... Rg1+ {[%clk 0:00:26.2]} 49. Kf3 {[%clk 0:00:08.4]}
49... Rg7 {[%clk 0:00:26.1]} 50. Rf8+ {[%clk 0:00:08.3]} 50... Rf7 {[%clk
0:00:26.4]} 51. Rb8 {[%clk 0:00:08.4]} 51... Kg7 {[%clk 0:00:26.6]} 52. Rb4
{[%clk 0:00:08.3]} 52... Ref6 {[%clk 0:00:26.8]} 53. Kg4 {[%clk 0:00:08.9]}
53... Rg6+ {[%clk 0:00:26.9]} 54. Kf3 {[%clk 0:00:09.4]} 54... Rd6 {[%clk
0:00:26.8]} 55. Kg4 {[%clk 0:00:09.8]} 55... Rfd7 {[%clk 0:00:27]} 56. Rb5
{[%clk 0:00:09.6]} 56... Rd4 {[%clk 0:00:26.5]} 57. Ra5 {[%clk 0:00:08.2]} 57...
Rf7 {[%clk 0:00:26.2]} 58. Rg5+ {[%clk 0:00:08.8]} 58... Kf8 {[%clk 0:00:26.2]}
59. Kh5 {[%clk 0:00:08.8]} 59... Rdxf4 {[%clk 0:00:25.6]} 60. Kg6 {[%clk
0:00:09.7]} 60... R4f6+ {[%clk 0:00:25.2]} 61. Kh5 {[%clk 0:00:09.5]} 61... Rf5
{[%clk 0:00:25.1]} 0-1

[Event "Early-Titled-Tuesday-Blitz-May-14-2024"]
[Site "Chess.com"]
[Date "2024.05.14"]
[Round "11"]
[White "Tigranpatagonian"]
[Black "kyawmyataung2005"]
[Result "1/2-1/2"]
[WhiteElo "2373"]
[BlackElo "2272"]
[TimeControl "180+1"]
[EndTime "10:08:34 PDT"]
[Termination "Game drawn by repetition"]

1. d4 {[%clk 0:02:46.1]} 1... Nf6 {[%clk 0:02:59.6]} 2. c4 {[%clk 0:02:33.9]}
2... e5 {[%clk 0:02:57.3]} 3. dxe5 {[%clk 0:02:32.9]} 3... Ng4 {[%clk
0:02:55.4]} 4. e4 {[%clk 0:02:31.9]} 4... Nxe5 {[%clk 0:02:52.2]} 5. f4 {[%clk
0:02:31.4]} 5... Nec6 {[%clk 0:02:48.8]} 6. Be3 {[%clk 0:02:27.3]} 6... a5
{[%clk 0:02:47.8]} 7. Nc3 {[%clk 0:02:22.9]} 7... Na6 {[%clk 0:02:47.6]} 8. Qh5
{[%clk 0:02:20.7]} 8... Nab4 {[%clk 0:02:24.7]} 9. O-O-O {[%clk 0:02:18.1]} 9...
g6 {[%clk 0:02:19.9]} 10. Qh3 {[%clk 0:02:04.5]} 10... d5 {[%clk 0:02:03.9]} 11.
f5 {[%clk 0:02:02.7]} 11... d4 {[%clk 0:02:02.8]} 12. Nf3 {[%clk 0:01:57.9]}
12... Bg7 {[%clk 0:01:54.1]} 13. Bg5 {[%clk 0:01:51.6]} 13... f6 {[%clk
0:01:42.6]} 14. Bh6 {[%clk 0:01:49.3]} 14... O-O {[%clk 0:01:39.7]} 15. Nd5
{[%clk 0:01:46.3]} 15... Nxa2+ {[%clk 0:01:25.3]} 16. Kb1 {[%clk 0:01:45.1]}
16... Nab4 {[%clk 0:01:25.4]} 17. g4 {[%clk 0:01:41.4]} 17... a4 {[%clk
0:01:16.8]} 18. Nxd4 {[%clk 0:01:29.9]} 18... Nxd4 {[%clk 0:01:14.6]} 19. Nxb4
{[%clk 0:01:28.5]} 19... c5 {[%clk 0:01:09.3]} 20. Nc2 {[%clk 0:01:24.5]} 20...
a3 {[%clk 0:01:01.7]} 21. Nxa3 {[%clk 0:01:19.7]} 21... Bxh6 {[%clk 0:00:57.5]}
22. Qxh6 {[%clk 0:01:19.2]} 22... g5 {[%clk 0:00:32.5]} 23. h4 {[%clk
0:01:17.3]} 23... Rf7 {[%clk 0:00:31.7]} 24. hxg5 {[%clk 0:01:16.5]} 24... fxg5
{[%clk 0:00:31.9]} 25. Rh5 {[%clk 0:01:07.1]} 25... Rg7 {[%clk 0:00:30]} 26. f6
{[%clk 0:01:05.2]} 26... Rg6 {[%clk 0:00:29.7]} 27. Rxg5 {[%clk 0:01:04.8]}
27... Qxf6 {[%clk 0:00:29.6]} 28. Rxg6+ {[%clk 0:01:02.5]} 28... Qxg6 {[%clk
0:00:29.3]} 29. Qxg6+ {[%clk 0:01:02.1]} 29... hxg6 {[%clk 0:00:30.2]} 30. g5
{[%clk 0:00:56.3]} 30... Bg4 {[%clk 0:00:29]} 31. Rd2 {[%clk 0:00:52.7]} 31...
Rf8 {[%clk 0:00:28.7]} 32. Bd3 {[%clk 0:00:50.5]} 32... Nf3 {[%clk 0:00:25.3]}
33. Rf2 {[%clk 0:00:49.7]} 33... Rd8 {[%clk 0:00:24]} 34. Be2 {[%clk 0:00:45.4]}
34... Ne5 {[%clk 0:00:20.1]} 35. Bxg4 {[%clk 0:00:43.8]} 35... Nxg4 {[%clk
0:00:20.5]} 36. Rf4 {[%clk 0:00:41]} 36... Ne5 {[%clk 0:00:20]} 37. Kc2 {[%clk
0:00:39]} 37... Kg7 {[%clk 0:00:15.9]} 38. b3 {[%clk 0:00:37.7]} 38... Rh8
{[%clk 0:00:15.9]} 39. Nb5 {[%clk 0:00:34.8]} 39... Rh5 {[%clk 0:00:15.7]} 40.
Rf6 {[%clk 0:00:33.1]} 40... Rxg5 {[%clk 0:00:15.6]} 41. Rb6 {[%clk 0:00:31.6]}
41... Rg2+ {[%clk 0:00:15.3]} 42. Kb1 {[%clk 0:00:31.6]} 42... Nd3 {[%clk
0:00:13.4]} 43. Rxb7+ {[%clk 0:00:30.9]} 43... Kh6 {[%clk 0:00:13.5]} 44. Nd6
{[%clk 0:00:26.8]} 44... Rb2+ {[%clk 0:00:11.7]} 45. Ka1 {[%clk 0:00:25.7]}
45... Re2 {[%clk 0:00:10.7]} 46. Rd7 {[%clk 0:00:22.6]} 46... Nc1 {[%clk
0:00:08.2]} 47. Rb7 {[%clk 0:00:17.8]} 47... Nd3 {[%clk 0:00:06.9]} 48. Kb1
{[%clk 0:00:16.8]} 48... Rb2+ {[%clk 0:00:06.4]} 49. Ka1 {[%clk 0:00:16.6]}
49... Re2 {[%clk 0:00:06.5]} 1/2-1/2

[Event "Early-Titled-Tuesday-Blitz-May-14-2024"]
[Site "Chess.com"]
[Date "2024.05.14"]
[Round "11"]
[White "Mbneu"]
[Black "AniJak"]
[Result "1/2-1/2"]
[WhiteElo "2236"]
[BlackElo "2360"]
[TimeControl "180+1"]
[EndTime "10:08:37 PDT"]
[Termination "Game drawn by repetition"]

1. d4 {[%clk 0:03:00.9]} 1... f5 {[%clk 0:02:41.2]} 2. e4 {[%clk 0:02:59.6]}
2... fxe4 {[%clk 0:02:38.3]} 3. Nc3 {[%clk 0:02:59.6]} 3... Nf6 {[%clk
0:02:37.5]} 4. f3 {[%clk 0:02:59.1]} 4... exf3 {[%clk 0:02:33.4]} 5. Nxf3 {[%clk
0:02:58.2]} 5... e6 {[%clk 0:02:33.5]} 6. Bd3 {[%clk 0:02:57.9]} 6... Be7 {[%clk
0:02:27.3]} 7. O-O {[%clk 0:02:56.2]} 7... O-O {[%clk 0:02:25.1]} 8. Qe1 {[%clk
0:02:34]} 8... Nc6 {[%clk 0:02:21.8]} 9. Ne4 {[%clk 0:02:33.3]} 9... d5 {[%clk
0:02:12.3]} 10. Neg5 {[%clk 0:02:28.9]} 10... g6 {[%clk 0:02:10.2]} 11. Nxe6
{[%clk 0:02:26.8]} 11... Bxe6 {[%clk 0:02:09]} 12. Qxe6+ {[%clk 0:02:25.8]}
12... Kg7 {[%clk 0:02:08.7]} 13. Qh3 {[%clk 0:01:55.2]} 13... Nh5 {[%clk
0:02:07.3]} 14. g4 {[%clk 0:01:50.6]} 14... Nf4 {[%clk 0:02:05.6]} 15. Bxf4
{[%clk 0:01:30.3]} 15... Rxf4 {[%clk 0:02:06.5]} 16. Rae1 {[%clk 0:01:28.8]}
16... Bd6 {[%clk 0:01:55.2]} 17. g5 {[%clk 0:01:22.9]} 17... Qf8 {[%clk
0:01:37.1]} 18. c3 {[%clk 0:01:08.7]} 18... Kg8 {[%clk 0:01:36.5]} 19. Ne5
{[%clk 0:01:01.2]} 19... Nxe5 {[%clk 0:01:22.8]} 20. dxe5 {[%clk 0:00:59.2]}
20... Bc5+ {[%clk 0:01:21.8]} 21. Kg2 {[%clk 0:00:55.3]} 21... Rf2+ {[%clk
0:01:19.8]} 22. Kh1 {[%clk 0:00:46.4]} 22... Re8 {[%clk 0:01:17.4]} 23. Rxf2
{[%clk 0:00:39.7]} 23... Qxf2 {[%clk 0:01:13.6]} 24. Rf1 {[%clk 0:00:39.3]}
24... Qe3 {[%clk 0:01:11.9]} 25. Qxe3 {[%clk 0:00:31.2]} 25... Bxe3 {[%clk
0:01:11]} 26. h4 {[%clk 0:00:27.9]} 26... Rxe5 {[%clk 0:01:09.9]} 27. Kg2 {[%clk
0:00:25.5]} 27... Bc5 {[%clk 0:01:01.2]} 28. Kg3 {[%clk 0:00:24.4]} 28... Re3+
{[%clk 0:01:00.6]} 29. Rf3 {[%clk 0:00:24]} 29... Bd6+ {[%clk 0:00:53]} 30. Kg4
{[%clk 0:00:22.8]} 30... Rxf3 {[%clk 0:00:40.6]} 31. Kxf3 {[%clk 0:00:22.4]}
31... Kf7 {[%clk 0:00:41.3]} 32. Kg4 {[%clk 0:00:22.5]} 32... Be5 {[%clk
0:00:37.3]} 33. h5 {[%clk 0:00:21.9]} 33... gxh5+ {[%clk 0:00:34.1]} 34. Kxh5
{[%clk 0:00:22]} 34... Kg7 {[%clk 0:00:33.9]} 35. Bf5 {[%clk 0:00:21.1]} 35...
Bf4 {[%clk 0:00:32.5]} 36. Be6 {[%clk 0:00:20.2]} 36... Bc1 {[%clk 0:00:24.6]}
37. Bxd5 {[%clk 0:00:17.2]} 37... c6 {[%clk 0:00:21.9]} 38. Be6 {[%clk
0:00:14.3]} 38... Bxb2 {[%clk 0:00:22.8]} 39. c4 {[%clk 0:00:14.4]} 39... b5
{[%clk 0:00:20.4]} 40. cxb5 {[%clk 0:00:13.8]} 40... cxb5 {[%clk 0:00:20.7]} 41.
Bd7 {[%clk 0:00:13.2]} 41... b4 {[%clk 0:00:20.6]} 42. Ba4 {[%clk 0:00:12.7]}
42... a5 {[%clk 0:00:19.8]} 43. Bb3 {[%clk 0:00:13.1]} 43... Bc1 {[%clk
0:00:18.9]} 44. Ba4 {[%clk 0:00:13.4]} 44... Kf8 {[%clk 0:00:18.9]} 45. Bb3
{[%clk 0:00:14]} 45... Ke7 {[%clk 0:00:18.7]} 46. Bc2 {[%clk 0:00:14.1]} 46...
Kf8 {[%clk 0:00:12.4]} 47. Bxh7 {[%clk 0:00:14.4]} 47... a4 {[%clk 0:00:12.7]}
48. Bc2 {[%clk 0:00:14]} 48... a3 {[%clk 0:00:10]} 49. Bb3 {[%clk 0:00:13.2]}
49... Kg7 {[%clk 0:00:09.5]} 50. Kg4 {[%clk 0:00:11.6]} 50... Bb2 {[%clk
0:00:10.4]} 51. Kf5 {[%clk 0:00:11]} 51... Bc3 {[%clk 0:00:10.8]} 52. g6 {[%clk
0:00:10.9]} 52... Bb2 {[%clk 0:00:11.2]} 53. Bf7 {[%clk 0:00:10.8]} 53... Bc3
{[%clk 0:00:12.1]} 54. Ke4 {[%clk 0:00:11.1]} 54... Bb2 {[%clk 0:00:13]} 55. Kd3
{[%clk 0:00:11.1]} 55... Bc3 {[%clk 0:00:13.9]} 56. Kc2 {[%clk 0:00:11.2]} 56...
Kf6 {[%clk 0:00:13.8]} 57. Kb3 {[%clk 0:00:11.2]} 57... Kg7 {[%clk 0:00:14.7]}
58. Kc2 {[%clk 0:00:11.5]} 58... Kf6 {[%clk 0:00:14.6]} 59. Kb3 {[%clk 0:00:12]}
59... Kg7 {[%clk 0:00:15]} 60. Kc2 {[%clk 0:00:12.7]} 1/2-1/2

[Event "Early-Titled-Tuesday-Blitz-May-14-2024"]
[Site "Chess.com"]
[Date "2024.05.14"]
[Round "11"]
[White "NMChessToImpress"]
[Black "Carolinamazariegos88"]
[Result "1-0"]
[WhiteElo "2264"]
[BlackElo "1710"]
[TimeControl "180+1"]
[EndTime "10:08:37 PDT"]
[Termination "NMChessToImpress won by resignation"]

1. e4 {[%clk 0:03:00.9]} 1... d5 {[%clk 0:02:52.8]} 2. exd5 {[%clk 0:03:00.3]}
2... Qxd5 {[%clk 0:02:53.3]} 3. Nc3 {[%clk 0:03:00.9]} 3... Qd8 {[%clk
0:02:53.5]} 4. d4 {[%clk 0:03:01.4]} 4... c6 {[%clk 0:02:53.3]} 5. Nf3 {[%clk
0:03:01.9]} 5... Nf6 {[%clk 0:02:53.6]} 6. Bc4 {[%clk 0:02:56.9]} 6... Bf5
{[%clk 0:02:53.6]} 7. Ne5 {[%clk 0:02:56.1]} 7... e6 {[%clk 0:02:53.7]} 8. g4
{[%clk 0:02:56.6]} 8... Bg6 {[%clk 0:02:53.2]} 9. h4 {[%clk 0:02:55.7]} 9... Be4
{[%clk 0:02:37.4]} 10. Nxe4 {[%clk 0:02:47.6]} 10... Nxe4 {[%clk 0:02:37.3]} 11.
Qf3 {[%clk 0:02:34.8]} 11... Nd6 {[%clk 0:02:36.6]} 12. Bb3 {[%clk 0:02:22.6]}
12... Nd7 {[%clk 0:02:33.2]} 13. Bf4 {[%clk 0:02:15.3]} 13... Nxe5 {[%clk
0:02:17.1]} 14. dxe5 {[%clk 0:02:15.4]} 14... Nb5 {[%clk 0:02:14.1]} 15. Rd1
{[%clk 0:02:07.8]} 15... Qa5+ {[%clk 0:02:09.5]} 16. c3 {[%clk 0:01:45.4]} 16...
Bc5 {[%clk 0:02:07.3]} 17. O-O {[%clk 0:01:32.1]} 17... Rd8 {[%clk 0:01:52.1]}
18. Bg5 {[%clk 0:01:17.7]} 18... Rxd1 {[%clk 0:01:47.5]} 19. Rxd1 {[%clk
0:01:18.6]} 19... O-O {[%clk 0:01:47.9]} 20. Qf4 {[%clk 0:00:42.2]} 20... Qb6
{[%clk 0:01:21.7]} 21. Bc2 {[%clk 0:00:34.3]} 21... f5 {[%clk 0:01:02]} 22. exf6
{[%clk 0:00:18]} 22... Nc7 {[%clk 0:00:47.8]} 23. f7+ {[%clk 0:00:15]} 23... Kh8
{[%clk 0:00:42.8]} 24. b4 {[%clk 0:00:12.9]} 24... Bxf2+ {[%clk 0:00:37.8]} 25.
Qxf2 {[%clk 0:00:13]} 25... Qxf2+ {[%clk 0:00:38.3]} 26. Kxf2 {[%clk 0:00:13.9]}
26... Rxf7+ {[%clk 0:00:38.6]} 27. Kg3 {[%clk 0:00:14.3]} 27... g6 {[%clk
0:00:38]} 28. Rd8+ {[%clk 0:00:13.6]} 28... Kg7 {[%clk 0:00:38.3]} 29. Bf4
{[%clk 0:00:13.2]} 29... Nd5 {[%clk 0:00:38.1]} 30. Bb3 {[%clk 0:00:11.4]} 30...
Nxf4 {[%clk 0:00:37.7]} 31. h5 {[%clk 0:00:09.2]} 31... gxh5 {[%clk 0:00:36.3]}
32. g5 {[%clk 0:00:09.2]} 32... Re7 {[%clk 0:00:35.1]} 33. Kxf4 {[%clk
0:00:08.6]} 33... e5+ {[%clk 0:00:34.5]} 34. Ke4 {[%clk 0:00:08.9]} 34... h6
{[%clk 0:00:31.1]} 35. gxh6+ {[%clk 0:00:08.7]} 35... Kxh6 {[%clk 0:00:31.1]}
36. Rh8+ {[%clk 0:00:09]} 36... Kg5 {[%clk 0:00:31.3]} 37. Rg8+ {[%clk
0:00:08.8]} 37... Kh4 {[%clk 0:00:30.8]} 38. Kf5 {[%clk 0:00:07.3]} 38... e4
{[%clk 0:00:29.8]} 39. Rg1 {[%clk 0:00:07.2]} 39... e3 {[%clk 0:00:29.3]} 40.
Re1 {[%clk 0:00:07]} 40... Kg3 {[%clk 0:00:29.4]} 41. Bd1 {[%clk 0:00:05.3]}
41... Kf2 {[%clk 0:00:29.4]} 42. Re2+ {[%clk 0:00:04.9]} 42... Kf1 {[%clk
0:00:26.9]} 43. Kf4 {[%clk 0:00:04.4]} 43... h4 {[%clk 0:00:26.8]} 44. Rxe3
{[%clk 0:00:04.4]} 44... Rxe3 {[%clk 0:00:26.6]} 45. Kxe3 {[%clk 0:00:04.8]}
45... Kg2 {[%clk 0:00:26.5]} 46. Bf3+ {[%clk 0:00:04.5]} 46... Kg1 {[%clk
0:00:26.5]} 47. c4 {[%clk 0:00:04.5]} 47... h3 {[%clk 0:00:26.3]} 48. b5 {[%clk
0:00:04.8]} 48... cxb5 {[%clk 0:00:20.5]} 49. cxb5 {[%clk 0:00:05.1]} 49... h2
{[%clk 0:00:21.4]} 50. Bxb7 {[%clk 0:00:04.3]} 50... h1=Q {[%clk 0:00:22.3]} 51.
Bxh1 {[%clk 0:00:04.4]} 51... Kxh1 {[%clk 0:00:23.2]} 52. Kd4 {[%clk 0:00:04.7]}
52... Kg2 {[%clk 0:00:24.1]} 53. Kc5 {[%clk 0:00:05.1]} 53... Kf3 {[%clk
0:00:25]} 54. Kc6 {[%clk 0:00:05.1]} 54... Ke4 {[%clk 0:00:25.9]} 55. Kb7 {[%clk
0:00:05.6]} 55... Kd5 {[%clk 0:00:26.8]} 56. Kxa7 {[%clk 0:00:05.6]} 1-0